[Event "*** Titled Tuesday Blitz AM"]
[Site "Chess.com"]
[Date "2020.01.07"]
[Round "4"]
[White "bluejay1897"]
[Black "MixMasterChess"]
[Result "1-0"]
[WhiteElo "2366"]
[BlackElo "2125"]
[TimeControl "180+2"]
[EndTime "9:50:59 PST"]
[Termination "bluejay1897 won by resignation"]

1. Nf3 {[%clk 0:03:01.9]} 1... d5 {[%clk 0:02:59.7]} 2. g3 {[%clk 0:03:02.4]}
2... c6 {[%clk 0:02:59.3]} 3. Bg2 {[%clk 0:03:03.4]} 3... Bg4 {[%clk 0:03:00.9]}
4. O-O {[%clk 0:03:04.1]} 4... Nd7 {[%clk 0:03:01]} 5. d4 {[%clk 0:03:04.6]}
5... e6 {[%clk 0:03:01.9]} 6. Bf4 {[%clk 0:03:00.8]} 6... Ne7 {[%clk 0:03:00.6]}
7. c4 {[%clk 0:03:01.6]} 7... Ng6 {[%clk 0:03:01.1]} 8. Be3 {[%clk 0:03:00.7]}
8... Bd6 {[%clk 0:02:59.6]} 9. Nc3 {[%clk 0:02:59.8]} 9... O-O {[%clk
0:02:56.9]} 10. Rc1 {[%clk 0:02:59.7]} 10... Re8 {[%clk 0:02:54.9]} 11. h4
{[%clk 0:02:59.1]} 11... Ngf8 {[%clk 0:02:49.1]} 12. Qd2 {[%clk 0:02:55.5]}
12... dxc4 {[%clk 0:02:43.8]} 13. Ne4 {[%clk 0:02:55.6]} 13... Be7 {[%clk
0:02:39.3]} 14. Rxc4 {[%clk 0:02:56]} 14... Nb6 {[%clk 0:02:33.1]} 15. Rcc1
{[%clk 0:02:53.4]} 15... Nd5 {[%clk 0:02:33.6]} 16. Ne5 {[%clk 0:02:47.6]} 16...
Nxe3 {[%clk 0:02:29.9]} 17. Qxe3 {[%clk 0:02:46.8]} 17... Bf5 {[%clk 0:02:29.6]}
18. Nc5 {[%clk 0:02:47.5]} 18... Bxc5 {[%clk 0:02:22.5]} 19. Rxc5 {[%clk
0:02:47.6]} 19... Nd7 {[%clk 0:02:21.3]} 20. Nxd7 {[%clk 0:02:37.4]} 20... Qxd7
{[%clk 0:02:23.2]} 21. Rd1 {[%clk 0:02:38.3]} 21... Rad8 {[%clk 0:02:11.1]} 22.
Bf3 {[%clk 0:02:35.8]} 22... h6 {[%clk 0:02:10.3]} 23. g4 {[%clk 0:02:32.1]}
23... Bh7 {[%clk 0:02:10.2]} 24. g5 {[%clk 0:02:33.3]} 24... hxg5 {[%clk
0:02:09.5]} 25. Rxg5 {[%clk 0:02:33.9]} 25... Qe7 {[%clk 0:01:59.2]} 26. Kh1
{[%clk 0:02:27.9]} 26... Qf6 {[%clk 0:01:41.5]} 27. h5 {[%clk 0:01:53.3]} 27...
Bf5 {[%clk 0:01:34.5]} 28. Rdg1 {[%clk 0:01:48.6]} 28... g6 {[%clk 0:01:32.1]}
29. hxg6 {[%clk 0:01:48.9]} 29... fxg6 {[%clk 0:01:32.6]} 30. Be4 {[%clk
0:01:37.3]} 30... Rxd4 {[%clk 0:01:14.9]} 31. Bxf5 {[%clk 0:01:33.7]} 31... Rh4+
{[%clk 0:00:54.5]} 32. Bh3 {[%clk 0:01:32]} 32... Kf7 {[%clk 0:00:40.6]} 33.
R1g3 {[%clk 0:01:28.4]} 33... Reh8 {[%clk 0:00:39]} 34. Kg2 {[%clk 0:01:29.1]}
34... Qxb2 {[%clk 0:00:19.1]} 35. Qxe6+ {[%clk 0:01:27.7]} 1-0

[Event "*** Titled Tuesday Blitz AM"]
[Site "Chess.com"]
[Date "2020.01.07"]
[Round "4"]
[White "Pultis"]
[Black "Duhless"]
[Result "0-1"]
[WhiteElo "2857"]
[BlackElo "3103"]
[TimeControl "180+2"]
[EndTime "9:51:00 PST"]
[Termination "Duhless won by resignation"]

1. d4 {[%clk 0:03:01.9]} 1... Nf6 {[%clk 0:03:00.2]} 2. c4 {[%clk 0:03:03]} 2...
e6 {[%clk 0:03:01.2]} 3. Nf3 {[%clk 0:03:03.2]} 3... d5 {[%clk 0:03:01.4]} 4.
Nc3 {[%clk 0:03:04.4]} 4... Bb4 {[%clk 0:03:01.3]} 5. Qa4+ {[%clk 0:03:03.1]}
5... Nc6 {[%clk 0:03:01.7]} 6. e3 {[%clk 0:03:04.5]} 6... O-O {[%clk 0:03:02.7]}
7. Qc2 {[%clk 0:03:04.9]} 7... Bd6 {[%clk 0:03:03.5]} 8. Be2 {[%clk 0:02:59.9]}
8... dxc4 {[%clk 0:02:57.5]} 9. Bxc4 {[%clk 0:02:59.2]} 9... e5 {[%clk
0:02:58.7]} 10. dxe5 {[%clk 0:02:43.4]} 10... Nxe5 {[%clk 0:02:58.9]} 11. Nxe5
{[%clk 0:02:44.9]} 11... Bxe5 {[%clk 0:03:00.8]} 12. h3 {[%clk 0:02:46.5]} 12...
Re8 {[%clk 0:02:58.5]} 13. O-O {[%clk 0:02:47.4]} 13... Be6 {[%clk 0:02:51.5]}
14. Rd1 {[%clk 0:02:37.7]} 14... Qc8 {[%clk 0:02:41]} 15. Bxe6 {[%clk 0:02:24]}
15... Qxe6 {[%clk 0:02:42.9]} 16. b3 {[%clk 0:02:25.2]} 16... Rad8 {[%clk
0:02:16.5]} 17. Bb2 {[%clk 0:02:25.5]} 17... Qc6 {[%clk 0:02:17]} 18. Rac1
{[%clk 0:02:18.5]} 18... h6 {[%clk 0:02:11.3]} 19. Rd3 {[%clk 0:02:04.5]} 19...
Ne4 {[%clk 0:02:03.3]} 20. Rcd1 {[%clk 0:01:11]} 20... Rd6 {[%clk 0:01:48]} 21.
Rxd6 {[%clk 0:00:24.5]} 21... cxd6 {[%clk 0:01:44]} 22. Rc1 {[%clk 0:00:06.7]}
22... Nxc3 {[%clk 0:01:19.5]} 23. Qd3 {[%clk 0:00:04.5]} 23... Rc8 {[%clk
0:01:18.1]} 24. f4 {[%clk 0:00:03]} 24... Bf6 {[%clk 0:01:18.2]} 25. Kh1 {[%clk
0:00:03.2]} 25... b5 {[%clk 0:01:14.2]} 26. a3 {[%clk 0:00:03.8]} 26... a5
{[%clk 0:01:14.8]} 27. e4 {[%clk 0:00:05.1]} 27... b4 {[%clk 0:01:14.3]} 28.
axb4 {[%clk 0:00:07]} 28... axb4 {[%clk 0:01:16.2]} 29. Re1 {[%clk 0:00:08.2]}
29... Re8 {[%clk 0:01:16.1]} 0-1

[Event "*** Titled Tuesday Blitz AM"]
[Site "Chess.com"]
[Date "2020.01.07"]
[Round "4"]
[White "Peroncio"]
[Black "crescentmoon2411"]
[Result "0-1"]
[WhiteElo "2748"]
[BlackElo "3040"]
[TimeControl "180+2"]
[EndTime "9:51:14 PST"]
[Termination "crescentmoon2411 won by resignation"]

1. g3 {[%clk 0:03:01.9]} 1... d5 {[%clk 0:02:58.6]} 2. Bg2 {[%clk 0:03:03.2]}
2... c6 {[%clk 0:02:59.1]} 3. Nf3 {[%clk 0:03:04.8]} 3... g6 {[%clk 0:02:57.5]}
4. O-O {[%clk 0:03:04.7]} 4... Bg7 {[%clk 0:02:58.7]} 5. d3 {[%clk 0:02:51.9]}
5... Nf6 {[%clk 0:02:58.6]} 6. c3 {[%clk 0:02:51]} 6... O-O {[%clk 0:02:59.6]}
7. Qa4 {[%clk 0:02:37.7]} 7... Nbd7 {[%clk 0:02:59.5]} 8. Rd1 {[%clk 0:02:37.8]}
8... e5 {[%clk 0:02:58.4]} 9. e4 {[%clk 0:02:38.9]} 9... dxe4 {[%clk 0:02:50.1]}
10. dxe4 {[%clk 0:02:40.8]} 10... Qc7 {[%clk 0:02:33.5]} 11. Nbd2 {[%clk
0:02:27.2]} 11... Nc5 {[%clk 0:02:31.1]} 12. Qc2 {[%clk 0:02:28.5]} 12... Rd8
{[%clk 0:02:21.4]} 13. b4 {[%clk 0:02:07.7]} 13... Ncxe4 {[%clk 0:02:15]} 14.
Nxe4 {[%clk 0:02:06.9]} 14... Rxd1+ {[%clk 0:02:13.1]} 15. Qxd1 {[%clk
0:02:08.8]} 15... Nxe4 {[%clk 0:02:14.1]} 16. Qe1 {[%clk 0:02:08.3]} 16... Nd6
{[%clk 0:02:08.6]} 17. Nxe5 {[%clk 0:02:03.2]} 17... Qe7 {[%clk 0:02:02.6]} 18.
Bf4 {[%clk 0:01:41.4]} 18... g5 {[%clk 0:01:59.8]} 19. Nxc6 {[%clk 0:01:39.7]}
19... Qxe1+ {[%clk 0:01:59.7]} 20. Rxe1 {[%clk 0:01:40]} 20... gxf4 {[%clk
0:02:01.6]} 21. Ne7+ {[%clk 0:01:30]} 21... Kf8 {[%clk 0:02:01.5]} 22. Nd5
{[%clk 0:01:31.9]} 22... fxg3 {[%clk 0:01:50.6]} 23. hxg3 {[%clk 0:01:33.8]}
23... Be6 {[%clk 0:01:25.5]} 24. Nc7 {[%clk 0:01:33.1]} 24... Rd8 {[%clk
0:01:18.4]} 25. Nxe6+ {[%clk 0:01:31.7]} 25... fxe6 {[%clk 0:01:20.3]} 26. c4
{[%clk 0:01:33.4]} 26... Nxc4 {[%clk 0:01:10.8]} 27. Bxb7 {[%clk 0:01:33.5]}
27... Ke7 {[%clk 0:01:07.5]} 28. Ba6 {[%clk 0:01:06]} 28... Nb6 {[%clk
0:01:04.8]} 29. Bb5 {[%clk 0:00:52.8]} 29... Rd2 {[%clk 0:01:04]} 30. a4 {[%clk
0:00:51.8]} 30... Bd4 {[%clk 0:01:04.8]} 31. Re2 {[%clk 0:00:48]} 31... Rxe2
{[%clk 0:01:05.4]} 32. Bxe2 {[%clk 0:00:49.9]} 32... Nxa4 {[%clk 0:01:06]} 33.
Kg2 {[%clk 0:00:50.6]} 33... Nc3 {[%clk 0:01:04.3]} 34. Bd3 {[%clk 0:00:51.6]}
34... h6 {[%clk 0:01:05.1]} 35. f4 {[%clk 0:00:52.9]} 35... Nd5 {[%clk
0:01:01.8]} 36. b5 {[%clk 0:00:53.2]} 36... Kd6 {[%clk 0:01:02.5]} 37. Kf3
{[%clk 0:00:54.7]} 37... Kc5 {[%clk 0:01:00.9]} 38. g4 {[%clk 0:00:56.2]} 38...
Nc7 {[%clk 0:01:01.4]} 39. Ke4 {[%clk 0:00:52.5]} 39... Bf6 {[%clk 0:00:59.3]}
40. f5 {[%clk 0:00:53.7]} 40... exf5+ {[%clk 0:01:00.4]} 41. Kxf5 {[%clk
0:00:55.6]} 41... Bg5 {[%clk 0:01:01.2]} 0-1

[Event "*** Titled Tuesday Blitz AM"]
[Site "Chess.com"]
[Date "2020.01.07"]
[Round "4"]
[White "hazy13"]
[Black "INLOVEWITHF"]
[Result "0-1"]
[WhiteElo "2225"]
[BlackElo "2461"]
[TimeControl "180+2"]
[EndTime "9:51:14 PST"]
[Termination "INLOVEWITHF won by resignation"]

1. d4 {[%clk 0:03:01.9]} 1... Nf6 {[%clk 0:02:58.5]} 2. c4 {[%clk 0:03:03]} 2...
e6 {[%clk 0:02:58.6]} 3. g3 {[%clk 0:03:03.1]} 3... c5 {[%clk 0:02:58.9]} 4. d5
{[%clk 0:03:02.6]} 4... exd5 {[%clk 0:02:58.4]} 5. cxd5 {[%clk 0:03:04.5]} 5...
d6 {[%clk 0:02:59.6]} 6. Bg2 {[%clk 0:03:05.3]} 6... g6 {[%clk 0:03:01.2]} 7.
Nf3 {[%clk 0:03:06]} 7... Bg7 {[%clk 0:03:03.1]} 8. O-O {[%clk 0:03:06.7]} 8...
O-O {[%clk 0:03:05]} 9. Nc3 {[%clk 0:03:07.4]} 9... Re8 {[%clk 0:03:05.9]} 10.
Nd2 {[%clk 0:02:59.2]} 10... a6 {[%clk 0:03:06.4]} 11. a4 {[%clk 0:02:59.9]}
11... Nbd7 {[%clk 0:03:08.1]} 12. Nc4 {[%clk 0:02:57.3]} 12... Ne5 {[%clk
0:03:05.6]} 13. Nxe5 {[%clk 0:02:55.3]} 13... Rxe5 {[%clk 0:03:07.5]} 14. Bf4
{[%clk 0:02:56.3]} 14... Re8 {[%clk 0:03:09]} 15. Re1 {[%clk 0:02:41.8]} 15...
Nh5 {[%clk 0:02:56.2]} 16. Bc1 {[%clk 0:02:29.2]} 16... f5 {[%clk 0:02:52.2]}
17. Bf3 {[%clk 0:02:20.5]} 17... Nf6 {[%clk 0:02:50.4]} 18. e4 {[%clk
0:02:04.7]} 18... fxe4 {[%clk 0:02:46]} 19. Nxe4 {[%clk 0:02:05.5]} 19... Nxe4
{[%clk 0:02:33.3]} 20. Rxe4 {[%clk 0:01:53]} 20... Bf5 {[%clk 0:02:32.1]} 21.
Re6 {[%clk 0:01:22.6]} 21... Bxe6 {[%clk 0:02:24.1]} 22. dxe6 {[%clk 0:01:23.7]}
22... Kh8 {[%clk 0:02:25.7]} 23. Bxb7 {[%clk 0:01:17.6]} 23... Rb8 {[%clk
0:02:25.7]} 24. Bxa6 {[%clk 0:01:07.9]} 24... Rxe6 {[%clk 0:02:26.2]} 25. Bc4
{[%clk 0:01:02.6]} 25... Re4 {[%clk 0:02:23.1]} 26. Qc2 {[%clk 0:00:55.6]} 26...
Re1+ {[%clk 0:02:21.5]} 27. Kg2 {[%clk 0:00:42.2]} 27... d5 {[%clk 0:02:19.4]}
28. Bb5 {[%clk 0:00:24.9]} 28... c4 {[%clk 0:02:04.6]} 29. Bg5 {[%clk
0:00:22.4]} 29... Qa5 {[%clk 0:01:54.1]} 30. Bd2 {[%clk 0:00:21.5]} 30... Re2
{[%clk 0:01:54.8]} 31. Bxa5 {[%clk 0:00:21]} 31... Rxc2 {[%clk 0:01:56.3]} 32.
Rb1 {[%clk 0:00:20.8]} 32... Rxb2 {[%clk 0:01:56.4]} 33. Rxb2 {[%clk 0:00:21.3]}
33... Bxb2 {[%clk 0:01:58.2]} 34. Bc7 {[%clk 0:00:20.6]} 34... Rc8 {[%clk
0:01:54.2]} 35. Bd6 {[%clk 0:00:14.9]} 35... c3 {[%clk 0:01:51.8]} 36. Be5+
{[%clk 0:00:15.9]} 36... Kg8 {[%clk 0:01:52.6]} 37. a5 {[%clk 0:00:13.4]} 37...
Ba3 {[%clk 0:01:50.2]} 38. Bd7 {[%clk 0:00:06.8]} 38... c2 {[%clk 0:01:47]} 39.
Bf4 {[%clk 0:00:03.6]} 39... c1=Q {[%clk 0:01:45]} 40. Bxc1 {[%clk 0:00:05.1]}
40... Rxc1 {[%clk 0:01:45.1]} 41. a6 {[%clk 0:00:06.4]} 41... Bc5 {[%clk
0:01:46.5]} 0-1

[Event "*** Titled Tuesday Blitz AM"]
[Site "Chess.com"]
[Date "2020.01.07"]
[Round "4"]
[White "enzovsky"]
[Black "adriangschnitzer"]
[Result "0-1"]
[WhiteElo "2215"]
[BlackElo "2549"]
[TimeControl "180+2"]
[EndTime "9:51:21 PST"]
[Termination "adriangschnitzer won by resignation"]

1. e4 {[%clk 0:03:01.9]} 1... c6 {[%clk 0:03:00.3]} 2. d4 {[%clk 0:03:02.6]}
2... d5 {[%clk 0:03:02.2]} 3. e5 {[%clk 0:03:01.4]} 3... Bf5 {[%clk 0:03:01.4]}
4. h4 {[%clk 0:03:01.4]} 4... h5 {[%clk 0:03:01.1]} 5. Bd3 {[%clk 0:03:00.2]}
5... Bxd3 {[%clk 0:03:00.3]} 6. Qxd3 {[%clk 0:03:02.1]} 6... e6 {[%clk
0:03:01.7]} 7. Bg5 {[%clk 0:02:54.4]} 7... Be7 {[%clk 0:03:01.4]} 8. Nf3 {[%clk
0:02:47.8]} 8... Nh6 {[%clk 0:03:00.9]} 9. Bxh6 {[%clk 0:02:45]} 9... Rxh6
{[%clk 0:03:02.8]} 10. g3 {[%clk 0:02:46.9]} 10... c5 {[%clk 0:03:01.5]} 11. c4
{[%clk 0:02:43.9]} 11... dxc4 {[%clk 0:03:01.5]} 12. Qxc4 {[%clk 0:02:33.3]}
12... cxd4 {[%clk 0:03:01.2]} 13. Qb5+ {[%clk 0:01:51.7]} 13... Nd7 {[%clk
0:02:51.8]} 14. Nxd4 {[%clk 0:01:49.3]} 14... Bc5 {[%clk 0:02:44.3]} 15. Nf3
{[%clk 0:01:42.5]} 15... a6 {[%clk 0:02:43.3]} 16. Qe2 {[%clk 0:01:39.4]} 16...
Qb6 {[%clk 0:02:30.7]} 17. Nc3 {[%clk 0:01:35.2]} 17... Rc8 {[%clk 0:02:29.9]}
18. O-O {[%clk 0:01:35.6]} 18... Rg6 {[%clk 0:02:30]} 19. Kg2 {[%clk 0:01:33.5]}
19... Qb4 {[%clk 0:02:26.3]} 20. a3 {[%clk 0:01:29]} 20... Qg4 {[%clk
0:02:24.5]} 21. Rac1 {[%clk 0:01:08.3]} 21... Be7 {[%clk 0:02:22.7]} 22. Ne4
{[%clk 0:01:02.2]} 22... Rxc1 {[%clk 0:02:13.6]} 23. Rxc1 {[%clk 0:01:04.1]}
23... Nxe5 {[%clk 0:02:09.5]} 24. Rc8+ {[%clk 0:00:50.8]} 24... Bd8 {[%clk
0:02:09.9]} 25. Nd6+ {[%clk 0:00:34.3]} 25... Ke7 {[%clk 0:02:02.5]} 26. Qxe5
{[%clk 0:00:35]} 26... Rf6 {[%clk 0:01:49.2]} 27. Nd4 {[%clk 0:00:30.8]} 27...
Bb6 {[%clk 0:01:43]} 28. N4f5+ {[%clk 0:00:30.1]} 28... Kd7 {[%clk 0:01:32.1]}
29. Ne4 {[%clk 0:00:18.9]} 29... Rxf5 {[%clk 0:01:10]} 30. Nc5+ {[%clk
0:00:06.6]} 30... Kxc8 {[%clk 0:01:03.8]} 0-1

[Event "*** Titled Tuesday Blitz AM"]
[Site "Chess.com"]
[Date "2020.01.07"]
[Round "4"]
[White "TST2014"]
[Black "EugeneRougon"]
[Result "0-1"]
[WhiteElo "2541"]
[BlackElo "2727"]
[TimeControl "180+2"]
[EndTime "9:51:28 PST"]
[Termination "EugeneRougon won by checkmate"]

1. d4 {[%clk 0:03:01.9]} 1... d6 {[%clk 0:02:58.5]} 2. Nf3 {[%clk 0:02:59.8]}
2... g6 {[%clk 0:02:59.1]} 3. c4 {[%clk 0:03:00.3]} 3... Bg7 {[%clk 0:03:00.2]}
4. Nc3 {[%clk 0:03:01]} 4... Bg4 {[%clk 0:03:01]} 5. Qb3 {[%clk 0:02:58.6]} 5...
Bxf3 {[%clk 0:02:59.8]} 6. exf3 {[%clk 0:02:56.2]} 6... Nc6 {[%clk 0:03:01]} 7.
Be3 {[%clk 0:02:46.2]} 7... Nxd4 {[%clk 0:02:50.2]} 8. Bxd4 {[%clk 0:02:46.4]}
8... Bxd4 {[%clk 0:02:52.1]} 9. Qxb7 {[%clk 0:02:46.1]} 9... Bxc3+ {[%clk
0:02:42.6]} 10. bxc3 {[%clk 0:02:46.2]} 10... Nf6 {[%clk 0:02:44.5]} 11. Qc6+
{[%clk 0:02:43.9]} 11... Kf8 {[%clk 0:02:45.2]} 12. Bd3 {[%clk 0:02:33.4]} 12...
Kg7 {[%clk 0:02:43.8]} 13. O-O {[%clk 0:02:30.9]} 13... Qd7 {[%clk 0:02:43]} 14.
Qa6 {[%clk 0:02:21.3]} 14... Rhb8 {[%clk 0:02:43.3]} 15. Rab1 {[%clk 0:02:21.8]}
15... Rb6 {[%clk 0:02:43.2]} 16. Qa3 {[%clk 0:02:15.4]} 16... Qc6 {[%clk
0:02:37.5]} 17. Rb5 {[%clk 0:02:14.5]} 17... a6 {[%clk 0:02:35.1]} 18. Ra5
{[%clk 0:02:10.5]} 18... Rab8 {[%clk 0:01:46.5]} 19. c5 {[%clk 0:02:03.2]} 19...
dxc5 {[%clk 0:01:45.6]} 20. Rxc5 {[%clk 0:02:02.8]} 20... Qd6 {[%clk 0:01:43.4]}
21. Be4 {[%clk 0:01:47.6]} 21... Nxe4 {[%clk 0:01:20.1]} 22. fxe4 {[%clk
0:01:46.2]} 22... Rb1 {[%clk 0:01:21.2]} 23. g3 {[%clk 0:01:06.5]} 23... Rxf1+
{[%clk 0:01:14.2]} 24. Kxf1 {[%clk 0:01:07]} 24... Rb5 {[%clk 0:01:15.8]} 25.
Rxb5 {[%clk 0:00:51.4]} 25... Qxa3 {[%clk 0:01:16.6]} 26. Re5 {[%clk 0:00:47]}
26... e6 {[%clk 0:01:10.3]} 27. c4 {[%clk 0:00:45]} 27... Qxa2 {[%clk
0:01:08.3]} 28. Rc5 {[%clk 0:00:44.3]} 28... Qb1+ {[%clk 0:01:08.2]} 29. Kg2
{[%clk 0:00:45.1]} 29... Qxe4+ {[%clk 0:01:09.7]} 30. Kg1 {[%clk 0:00:46.5]}
30... Qb7 {[%clk 0:01:08.2]} 31. Ra5 {[%clk 0:00:43.1]} 31... Qb6 {[%clk
0:01:09.4]} 32. Ra4 {[%clk 0:00:44.2]} 32... c5 {[%clk 0:01:08]} 33. h4 {[%clk
0:00:44.4]} 33... Qb3 {[%clk 0:01:05.2]} 34. Rxa6 {[%clk 0:00:43.9]} 34... Qxc4
{[%clk 0:01:06.7]} 35. Rc6 {[%clk 0:00:44.5]} 35... Qd5 {[%clk 0:01:07.4]} 36.
Rc8 {[%clk 0:00:44.7]} 36... c4 {[%clk 0:01:08.7]} 37. Rc7 {[%clk 0:00:46.1]}
37... Qd4 {[%clk 0:01:09.1]} 38. Kf1 {[%clk 0:00:45.2]} 38... c3 {[%clk
0:01:09.9]} 39. Ke2 {[%clk 0:00:46.1]} 39... Qd2+ {[%clk 0:01:10.9]} 40. Kf3
{[%clk 0:00:47.2]} 40... c2 {[%clk 0:01:12.8]} 41. Kg2 {[%clk 0:00:48.4]} 41...
c1=Q {[%clk 0:01:13.7]} 42. Rxc1 {[%clk 0:00:48.5]} 42... Qxc1 {[%clk
0:01:15.6]} 43. h5 {[%clk 0:00:50]} 43... gxh5 {[%clk 0:01:16.5]} 44. Kh3 {[%clk
0:00:50.9]} 44... Qf1+ {[%clk 0:01:17.1]} 45. Kh4 {[%clk 0:00:52.1]} 45... Kg6
{[%clk 0:01:16.8]} 46. f4 {[%clk 0:00:52.4]} 46... Qh1# {[%clk 0:01:17.6]} 0-1

[Event "*** Titled Tuesday Blitz AM"]
[Site "Chess.com"]
[Date "2020.01.07"]
[Round "4"]
[White "Snegokhod"]
[Black "TigrVShlyape"]
[Result "1/2-1/2"]
[WhiteElo "2588"]
[BlackElo "2812"]
[TimeControl "180+2"]
[EndTime "9:51:29 PST"]
[Termination "Game drawn by agreement"]

1. e4 {[%clk 0:02:56.2]} 1... g6 {[%clk 0:02:59.5]} 2. d4 {[%clk 0:02:54.7]}
2... Bg7 {[%clk 0:03:00.5]} 3. Nc3 {[%clk 0:02:50.5]} 3... d6 {[%clk 0:03:01.4]}
4. Be3 {[%clk 0:02:48.9]} 4... a6 {[%clk 0:03:01.8]} 5. h3 {[%clk 0:02:42.9]}
5... b5 {[%clk 0:03:01.7]} 6. Bd3 {[%clk 0:02:40.5]} 6... Nd7 {[%clk 0:03:00.7]}
7. Nf3 {[%clk 0:02:37.2]} 7... Bb7 {[%clk 0:02:57.5]} 8. O-O {[%clk 0:02:35.2]}
8... Ngf6 {[%clk 0:02:49.1]} 9. a3 {[%clk 0:02:26]} 9... O-O {[%clk 0:02:47.5]}
10. e5 {[%clk 0:02:17.3]} 10... Bxf3 {[%clk 0:02:44.5]} 11. Qxf3 {[%clk
0:02:15.5]} 11... dxe5 {[%clk 0:02:44.9]} 12. Rad1 {[%clk 0:02:15.6]} 12... Qc8
{[%clk 0:02:30.3]} 13. Rfe1 {[%clk 0:02:03.1]} 13... c5 {[%clk 0:02:26.3]} 14.
dxc5 {[%clk 0:02:01.6]} 14... Nxc5 {[%clk 0:02:26.7]} 15. Bg5 {[%clk 0:02:01.8]}
15... h6 {[%clk 0:02:14.6]} 16. Bxf6 {[%clk 0:02:02.6]} 16... exf6 {[%clk
0:02:14.7]} 17. Nd5 {[%clk 0:02:03]} 17... Qd8 {[%clk 0:01:57.3]} 18. g4 {[%clk
0:01:53.7]} 18... Ra7 {[%clk 0:01:50.3]} 19. Bf1 {[%clk 0:01:51.5]} 19... f5
{[%clk 0:01:33.4]} 20. gxf5 {[%clk 0:01:47.3]} 20... Qg5+ {[%clk 0:01:33.6]} 21.
Qg4 {[%clk 0:01:47.8]} 21... gxf5 {[%clk 0:01:32.1]} 22. Qxg5 {[%clk 0:01:48.6]}
22... hxg5 {[%clk 0:01:33.1]} 23. Ne3 {[%clk 0:01:49.6]} 23... f4 {[%clk
0:01:30.7]} 24. Nf5 {[%clk 0:01:50.7]} 24... Re8 {[%clk 0:01:10.7]} 25. Bg2
{[%clk 0:01:45]} 25... Rc7 {[%clk 0:01:08.2]} 26. Rd6 {[%clk 0:01:39]} 26... Bf8
{[%clk 0:01:05.9]} 27. Rb6 {[%clk 0:01:34.1]} 27... Na4 {[%clk 0:01:05]} 28.
Rxa6 {[%clk 0:01:32.7]} 28... Nxb2 {[%clk 0:01:05.7]} 29. Bd5 {[%clk 0:01:27.5]}
29... Kh7 {[%clk 0:01:00.5]} 30. Be4 {[%clk 0:01:23.1]} 30... Kh8 {[%clk
0:01:00.2]} 31. Bd5 {[%clk 0:01:24.2]} 31... Na4 {[%clk 0:00:58.3]} 32. Rf6
{[%clk 0:01:23.4]} 32... Bg7 {[%clk 0:00:58]} 33. Rxf7 {[%clk 0:01:22.1]} 33...
Rxf7 {[%clk 0:00:59]} 34. Bxf7 {[%clk 0:01:24]} 34... Rf8 {[%clk 0:01:00]} 35.
Bg6 {[%clk 0:01:22.2]} 35... Nc3 {[%clk 0:00:58.1]} 36. Nd6 {[%clk 0:01:16.8]}
36... Bf6 {[%clk 0:00:53.2]} 37. Bd3 {[%clk 0:01:17.6]} 37... Rb8 {[%clk
0:00:49.7]} 38. Ne4 {[%clk 0:01:13.6]} 38... Nxe4 {[%clk 0:00:50]} 39. Rxe4
{[%clk 0:01:15.5]} 39... Kg7 {[%clk 0:00:49.7]} 40. Rb4 {[%clk 0:01:12]} 40...
Be7 {[%clk 0:00:49.3]} 41. Rxb5 {[%clk 0:01:12.8]} 41... Rxb5 {[%clk 0:00:49.9]}
42. Bxb5 {[%clk 0:01:14]} 42... Bxa3 {[%clk 0:00:50.8]} 43. f3 {[%clk
0:01:14.5]} 43... Kf6 {[%clk 0:00:50.8]} 44. Kg2 {[%clk 0:01:15.7]} 44... Ke6
{[%clk 0:00:51.1]} 45. Bd3 {[%clk 0:01:16.1]} 45... Kd5 {[%clk 0:00:52.2]} 46.
Be4+ {[%clk 0:01:17.2]} 46... Kd4 {[%clk 0:00:53.4]} 47. Bh7 {[%clk 0:01:18.2]}
47... Kc3 {[%clk 0:00:54.4]} 48. Bd3 {[%clk 0:01:18.8]} 1/2-1/2

[Event "*** Titled Tuesday Blitz AM"]
[Site "Chess.com"]
[Date "2020.01.07"]
[Round "4"]
[White "SantoBlue"]
[Black "JSMastropiero"]
[Result "1-0"]
[WhiteElo "2755"]
[BlackElo "2395"]
[TimeControl "180+2"]
[EndTime "9:51:29 PST"]
[Termination "SantoBlue won by resignation"]

1. e4 {[%clk 0:03:01.9]} 1... c5 {[%clk 0:02:57.6]} 2. Nc3 {[%clk 0:03:01.3]}
2... e6 {[%clk 0:02:57.2]} 3. Nf3 {[%clk 0:03:01.4]} 3... a6 {[%clk 0:02:56.5]}
4. d4 {[%clk 0:03:02.5]} 4... cxd4 {[%clk 0:02:56.8]} 5. Nxd4 {[%clk 0:03:04.4]}
5... Qc7 {[%clk 0:02:56]} 6. g3 {[%clk 0:03:05.2]} 6... Nf6 {[%clk 0:02:53.2]}
7. Bg2 {[%clk 0:03:05.9]} 7... d6 {[%clk 0:02:51.1]} 8. O-O {[%clk 0:03:05.9]}
8... Be7 {[%clk 0:02:51.6]} 9. Nb3 {[%clk 0:03:05]} 9... Nc6 {[%clk 0:02:36.3]}
10. f4 {[%clk 0:03:06.1]} 10... h5 {[%clk 0:02:33.1]} 11. h3 {[%clk 0:03:01.9]}
11... b5 {[%clk 0:02:29]} 12. Be3 {[%clk 0:03:02.2]} 12... Bb7 {[%clk
0:02:28.7]} 13. a3 {[%clk 0:03:03.1]} 13... h4 {[%clk 0:02:15.4]} 14. g4 {[%clk
0:03:03.3]} 14... Nd7 {[%clk 0:02:16]} 15. Qe2 {[%clk 0:03:00.1]} 15... g5
{[%clk 0:02:11]} 16. fxg5 {[%clk 0:02:58.3]} 16... Nde5 {[%clk 0:02:10.9]} 17.
Rad1 {[%clk 0:02:56.8]} 17... O-O-O {[%clk 0:02:10.8]} 18. Nd4 {[%clk
0:02:51.8]} 18... Rdg8 {[%clk 0:02:04.2]} 19. Nxc6 {[%clk 0:02:52.3]} 19... Bxc6
{[%clk 0:02:04.2]} 20. a4 {[%clk 0:02:51.6]} 20... Qb7 {[%clk 0:01:59.3]} 21.
axb5 {[%clk 0:02:52]} 21... axb5 {[%clk 0:01:58.3]} 22. Ra1 {[%clk 0:02:41.8]}
22... Bxg5 {[%clk 0:01:43]} 23. Ra7 {[%clk 0:02:39.3]} 23... Bxe3+ {[%clk
0:01:38.3]} 24. Qxe3 {[%clk 0:02:39.4]} 24... Qb8 {[%clk 0:01:23.3]} 25. Rfa1
{[%clk 0:02:29.5]} 25... Rd8 {[%clk 0:01:15.6]} 26. R1a6 {[%clk 0:02:19.7]}
26... Rd7 {[%clk 0:01:13.4]} 27. Rxd7 {[%clk 0:02:05.2]} 27... Kxd7 {[%clk
0:01:06.8]} 28. Ra7+ {[%clk 0:02:06.1]} 28... Kc8 {[%clk 0:01:07.3]} 29. Bf1
{[%clk 0:02:00.3]} 29... Rd8 {[%clk 0:01:04.4]} 30. Na4 {[%clk 0:01:34.4]} 30...
Nd7 {[%clk 0:00:42]} 31. Ra6 {[%clk 0:01:29.6]} 31... Qb7 {[%clk 0:00:37.2]} 32.
Nb6+ {[%clk 0:01:25.8]} 32... Nxb6 {[%clk 0:00:34]} 33. Rxb6 {[%clk 0:01:26.5]}
33... Qa8 {[%clk 0:00:34]} 34. Bxb5 {[%clk 0:01:08]} 34... Bxe4 {[%clk
0:00:26.5]} 35. Qc3+ {[%clk 0:01:06.3]} 1-0